[Event "Titled Tuesday Blitz June 07 Late 2022"]
[White "Saveliev, Alexei"]
[Black "Badelka, Olga"]
[WhiteFideId "24128546"]
[BlackFideId "13509926"]
[WhiteElo "2281"]
[BlackElo "2165"]
[Result "0-1"]
[Round "08"]
[TimeControl "180+1"]
[Date "2022.06.07"]
[WhiteClock "0:00:01"]
[BlackClock "0:00:02"]

1. c4 {[%clk 0:02:59]}  e6 {[%clk 0:02:58]} 2. Nc3 {[%clk 0:02:53]}  d5 {[%clk 0:02:58]} 3. cxd5 {[%clk 0:02:53]}  exd5 {[%clk 0:02:57]} 4. d4 {[%clk 0:02:54]}  c6 {[%clk 0:02:56]} 5. Qc2 {[%clk 0:02:54]}  Be7 {[%clk 0:02:50]} 6. Nf3 {[%clk 0:02:54]}  Nf6 {[%clk 0:02:50]} 7. Bg5 {[%clk 0:02:54]}  h6 {[%clk 0:02:50]} 8. Bh4 {[%clk 0:02:54]}  Nbd7 {[%clk 0:02:50]} 9. e3 {[%clk 0:02:54]}  Nf8 {[%clk 0:02:47]} 10. Bd3 {[%clk 0:02:55]}  Ne6 {[%clk 0:02:38]} 11. Rb1 {[%clk 0:02:49]}  O-O {[%clk 0:02:37]} 12. O-O {[%clk 0:02:48]}  Nh5 {[%clk 0:02:28]} 13. Bxe7 {[%clk 0:02:40]}  Qxe7 {[%clk 0:02:29]} 14. b4 {[%clk 0:02:40]}  a6 {[%clk 0:02:27]} 15. a4 {[%clk 0:02:40]}  Ng5 {[%clk 0:02:10]} 16. Ne5 {[%clk 0:02:37]}  Nf6 {[%clk 0:01:52]} 17. b5 {[%clk 0:02:31]}  axb5 {[%clk 0:01:52]} 18. axb5 {[%clk 0:02:32]}  c5 {[%clk 0:01:52]} 19. f4 {[%clk 0:02:24]}  Nge4 {[%clk 0:01:26]} 20. Nxd5 {[%clk 0:01:51]}  Nxd5 {[%clk 0:01:26]} 21. Bxe4 {[%clk 0:01:51]}  Nxe3 {[%clk 0:01:01]} 22. Bh7+ {[%clk 0:01:36]}  Kh8 {[%clk 0:01:01]} 23. Qe4 {[%clk 0:01:31]}  Re8 {[%clk 0:00:33]} 24. Qxe3 {[%clk 0:01:16]}  Kxh7 {[%clk 0:00:33]} 25. Qd3+ {[%clk 0:00:57]}  Kg8 {[%clk 0:00:28]} 26. d5 {[%clk 0:00:28]}  Rd8 {[%clk 0:00:28]} 27. Nc4 {[%clk 0:00:23]}  Qf6 {[%clk 0:00:26]} 28. Rbd1 {[%clk 0:00:20]}  Bf5 {[%clk 0:00:25]} 29. Qe3 {[%clk 0:00:17]}  Ra4 {[%clk 0:00:19]} 30. Ne5 {[%clk 0:00:11]}  c4 {[%clk 0:00:18]} 31. h3 {[%clk 0:00:07]}  Rb4 {[%clk 0:00:15]} 32. Qc5 {[%clk 0:00:06]}  Rb2 {[%clk 0:00:12]} 33. Rf2 {[%clk 0:00:03]}  Rxf2 {[%clk 0:00:12]} 34. Qxf2 {[%clk 0:00:04]}  c3 {[%clk 0:00:11]} 35. Qc5 {[%clk 0:00:01]}  c2 {[%clk 0:00:11]} 36. Qd4 {[%clk 0:00:02]}  cxd1=Q+ {[%clk 0:00:10]} 37. Qxd1 {[%clk 0:00:02]}  Qb6+ {[%clk 0:00:10]} 38. Kh2 {[%clk 0:00:02]}  Qc5 {[%clk 0:00:09]} 39. Qa4 {[%clk 0:00:01]}  Qxd5 {[%clk 0:00:09]} 40. Qa5 {[%clk 0:00:02]}  Be6 {[%clk 0:00:08]} 41. Qc7 {[%clk 0:00:02]}  Rc8 {[%clk 0:00:07]} 42. Qe7 {[%clk 0:00:02]}  Qe4 {[%clk 0:00:06]} 43. Qh4 {[%clk 0:00:01]}  Qf5 {[%clk 0:00:06]} 44. Qg3 {[%clk 0:00:01]}  g6 {[%clk 0:00:05]} 45. Qe3 {[%clk 0:00:02]}  g5 {[%clk 0:00:05]} 46. Nd3 {[%clk 0:00:01]}  gxf4 {[%clk 0:00:05]} 47. Nxf4 {[%clk 0:00:02]}  Rc4 {[%clk 0:00:04]} 48. Nd3 {[%clk 0:00:02]}  Qe4 {[%clk 0:00:04]} 49. Qg3+ {[%clk 0:00:02]}  Kh7 {[%clk 0:00:03]} 50. Ne5 {[%clk 0:00:02]}  Rc5 {[%clk 0:00:03]} 51. Nf3 {[%clk 0:00:02]}  Rf5 {[%clk 0:00:03]} 52. Kg1 {[%clk 0:00:02]}  Qf4 {[%clk 0:00:03]} 53. Qe1 {[%clk 0:00:02]}  Qc4 {[%clk 0:00:02]} 54. Qb1 {[%clk 0:00:02]}  Qc5+ {[%clk 0:00:03]} 55. Kh1 {[%clk 0:00:02]}  Kg7 {[%clk 0:00:03]} 56. Qb2+ {[%clk 0:00:02]}  Rf6 {[%clk 0:00:03]} 57. Qe2 {[%clk 0:00:01]}  Rg6 {[%clk 0:00:03]} 58. Qb2+ {[%clk 0:00:01]}  Kg8 {[%clk 0:00:03]} 59. Qd2 {[%clk 0:00:01]}  Qd5 {[%clk 0:00:03]} 60. Qc2 {[%clk 0:00:01]}  Qf5 {[%clk 0:00:03]} 61. Qd2 {[%clk 0:00:01]}  Qe4 {[%clk 0:00:02]} 0-1


[Site "https://www.chess.com"]

[Event "Titled Tuesday Blitz June 07 Late 2022"]
[White "Shimanov, Aleksandr"]
[Black "Jobava, Baadur"]
[WhiteFideId "4198603"]
[BlackFideId "13601520"]
[WhiteElo "2605"]
[BlackElo "2617"]
[Result "0-1"]
[Round "08"]
[TimeControl "180+1"]
[Date "2022.06.07"]
[WhiteClock "0:00:11"]
[BlackClock "0:01:33"]

1. d4 {[%clk 0:03:00]}  d5 {[%clk 0:02:59]} 2. Nf3 {[%clk 0:02:58]}  c6 {[%clk 0:03:00]} 3. Bf4 {[%clk 0:02:49]}  Nf6 {[%clk 0:03:01]} 4. e3 {[%clk 0:02:43]}  Bg4 {[%clk 0:03:01]} 5. Nbd2 {[%clk 0:02:36]}  e6 {[%clk 0:03:01]} 6. h3 {[%clk 0:02:36]}  Bxf3 {[%clk 0:03:01]} 7. Nxf3 {[%clk 0:02:36]}  Bd6 {[%clk 0:03:02]} 8. Bd3 {[%clk 0:02:16]}  Bxf4 {[%clk 0:03:00]} 9. exf4 {[%clk 0:02:17]}  Nbd7 {[%clk 0:03:00]} 10. O-O {[%clk 0:02:16]}  O-O {[%clk 0:03:00]} 11. c3 {[%clk 0:02:16]}  c5 {[%clk 0:03:00]} 12. Qe1 {[%clk 0:02:15]}  Rc8 {[%clk 0:02:59]} 13. Qe3 {[%clk 0:02:12]}  cxd4 {[%clk 0:02:59]} 14. Nxd4 {[%clk 0:02:13]}  g6 {[%clk 0:02:56]} 15. Rfe1 {[%clk 0:02:10]}  Re8 {[%clk 0:02:56]} 16. Rad1 {[%clk 0:02:03]}  Qa5 {[%clk 0:02:54]} 17. a3 {[%clk 0:02:01]}  Qb6 {[%clk 0:02:54]} 18. Re2 {[%clk 0:01:53]}  Nc5 {[%clk 0:02:53]} 19. Bb1 {[%clk 0:01:51]}  Nb3 {[%clk 0:02:42]} 20. Nxb3 {[%clk 0:01:27]}  Qxb3 {[%clk 0:02:43]} 21. Rde1 {[%clk 0:01:28]}  Qb6 {[%clk 0:02:41]} 22. Qxb6 {[%clk 0:01:26]}  axb6 {[%clk 0:02:41]} 23. g3 {[%clk 0:01:25]}  Kf8 {[%clk 0:02:41]} 24. Rd2 {[%clk 0:01:25]}  Ke7 {[%clk 0:02:40]} 25. Kg2 {[%clk 0:01:24]}  Kd6 {[%clk 0:02:39]} 26. Rd4 {[%clk 0:01:21]}  Nd7 {[%clk 0:02:32]} 27. Red1 {[%clk 0:01:19]}  Ke7 {[%clk 0:02:32]} 28. Re1 {[%clk 0:01:10]}  Kf6 {[%clk 0:02:27]} 29. Rb4 {[%clk 0:01:08]}  Rc5 {[%clk 0:02:22]} 30. Bc2 {[%clk 0:01:06]}  Ra8 {[%clk 0:02:00]} 31. Rd1 {[%clk 0:00:57]}  b5 {[%clk 0:01:47]} 32. a4 {[%clk 0:00:50]}  bxa4 {[%clk 0:01:42]} 33. Bxa4 {[%clk 0:00:47]}  Rc7 {[%clk 0:01:42]} 34. Bxd7 {[%clk 0:00:42]}  Rxd7 {[%clk 0:01:43]} 35. Rb6 {[%clk 0:00:41]}  Ke7 {[%clk 0:01:41]} 36. Rd4 {[%clk 0:00:41]}  Kd8 {[%clk 0:01:38]} 37. Rdb4 {[%clk 0:00:40]}  Kc8 {[%clk 0:01:38]} 38. g4 {[%clk 0:00:39]}  Ra7 {[%clk 0:01:37]} 39. Kf3 {[%clk 0:00:38]}  Kc7 {[%clk 0:01:37]} 40. Ke3 {[%clk 0:00:35]}  Rd6 {[%clk 0:01:37]} 41. Rxd6 {[%clk 0:00:35]}  Kxd6 {[%clk 0:01:37]} 42. Kd4 {[%clk 0:00:36]}  Kc6 {[%clk 0:01:37]} 43. Ke5 {[%clk 0:00:35]}  b5 {[%clk 0:01:35]} 44. Kf6 {[%clk 0:00:33]}  Kc5 {[%clk 0:01:34]} 45. f5 {[%clk 0:00:26]}  gxf5 {[%clk 0:01:34]} 46. gxf5 {[%clk 0:00:27]}  exf5 {[%clk 0:01:34]} 47. h4 {[%clk 0:00:23]}  Ra4 {[%clk 0:01:32]} 48. Kg7 {[%clk 0:00:15]}  Rxb4 {[%clk 0:01:31]} 49. cxb4+ {[%clk 0:00:15]}  Kxb4 {[%clk 0:01:32]} 50. Kxh7 {[%clk 0:00:08]}  d4 {[%clk 0:01:33]} 51. h5 {[%clk 0:00:09]}  d3 {[%clk 0:01:33]} 52. h6 {[%clk 0:00:09]}  d2 {[%clk 0:01:34]} 53. Kg8 {[%clk 0:00:10]}  d1=Q {[%clk 0:01:35]} 54. h7 {[%clk 0:00:11]}  Qd8+ {[%clk 0:01:31]} 55. Kg7 {[%clk 0:00:11]}  Qg5+ {[%clk 0:01:31]} 56. Kxf7 {[%clk 0:00:11]}  Qh6 {[%clk 0:01:32]} 57. Kg8 {[%clk 0:00:11]}  Qg6+ {[%clk 0:01:32]} 58. Kh8 {[%clk 0:00:11]}  Qf7 {[%clk 0:01:32]} 59. f4 {[%clk 0:00:11]}  Qf8# {[%clk 0:01:33]} 0-1


[Site "https://www.chess.com"]

[Event "Titled Tuesday Blitz June 07 Late 2022"]
[White "Slugin, Sergey"]
[Black "Lobanov, Sergei"]
[WhiteFideId "4122569"]
[BlackFideId "24183750"]
[WhiteElo "2358"]
[BlackElo "2524"]
[Result "1/2-1/2"]
[Round "08"]
[TimeControl "180+1"]
[Date "2022.06.07"]
[WhiteClock "0:00:16"]
[BlackClock "0:00:04"]

1. c4 {[%clk 0:03:00]}  e5 {[%clk 0:02:59]} 2. Nc3 {[%clk 0:03:00]}  Nf6 {[%clk 0:02:59]} 3. Nf3 {[%clk 0:03:01]}  Nc6 {[%clk 0:02:53]} 4. e4 {[%clk 0:03:00]}  Bb4 {[%clk 0:02:48]} 5. d3 {[%clk 0:02:59]}  d6 {[%clk 0:02:46]} 6. a3 {[%clk 0:03:00]}  Bc5 {[%clk 0:02:45]} 7. b4 {[%clk 0:02:57]}  Bb6 {[%clk 0:02:43]} 8. Be3 {[%clk 0:02:57]}  Bg4 {[%clk 0:02:42]} 9. Be2 {[%clk 0:02:57]}  Bxf3 {[%clk 0:02:40]} 10. Bxf3 {[%clk 0:02:58]}  Bd4 {[%clk 0:02:41]} 11. Rc1 {[%clk 0:02:57]}  O-O {[%clk 0:02:37]} 12. O-O {[%clk 0:02:56]}  a5 {[%clk 0:02:27]} 13. b5 {[%clk 0:02:56]}  Bxe3 {[%clk 0:02:27]} 14. fxe3 {[%clk 0:02:56]}  Nb8 {[%clk 0:02:28]} 15. Bg4 {[%clk 0:02:25]}  Nbd7 {[%clk 0:02:03]} 16. Bxd7 {[%clk 0:02:25]}  Nxd7 {[%clk 0:02:04]} 17. Qg4 {[%clk 0:02:17]}  c6 {[%clk 0:01:45]} 18. Rf3 {[%clk 0:02:12]}  Qe7 {[%clk 0:01:40]} 19. Rcf1 {[%clk 0:02:09]}  f6 {[%clk 0:01:40]} 20. Rb1 {[%clk 0:02:04]}  Rab8 {[%clk 0:01:29]} 21. Rf2 {[%clk 0:02:04]}  Nc5 {[%clk 0:01:20]} 22. d4 {[%clk 0:02:00]}  Qe6 {[%clk 0:01:18]} 23. Qe2 {[%clk 0:01:50]}  exd4 {[%clk 0:01:16]} 24. exd4 {[%clk 0:01:51]}  Nd7 {[%clk 0:01:16]} 25. Qd3 {[%clk 0:01:44]}  Rfe8 {[%clk 0:01:12]} 26. Rfb2 {[%clk 0:01:42]}  c5 {[%clk 0:01:11]} 27. Rd2 {[%clk 0:01:32]}  Rbd8 {[%clk 0:01:07]} 28. Nd5 {[%clk 0:01:30]}  Qxe4 {[%clk 0:01:05]} 29. Rbd1 {[%clk 0:01:17]}  Qxd3 {[%clk 0:01:01]} 30. Rxd3 {[%clk 0:01:18]}  Re4 {[%clk 0:00:43]} 31. Nc3 {[%clk 0:00:59]}  Rxd4 {[%clk 0:00:39]} 32. Rxd4 {[%clk 0:01:00]}  cxd4 {[%clk 0:00:39]} 33. Rxd4 {[%clk 0:01:01]}  Nc5 {[%clk 0:00:39]} 34. Kf2 {[%clk 0:00:52]}  Kf7 {[%clk 0:00:39]} 35. Nd5 {[%clk 0:00:47]}  Ke6 {[%clk 0:00:32]} 36. Nf4+ {[%clk 0:00:44]}  Kd7 {[%clk 0:00:31]} 37. Nh5 {[%clk 0:00:42]}  Ne6 {[%clk 0:00:23]} 38. Rg4 {[%clk 0:00:42]}  f5 {[%clk 0:00:24]} 39. Rg3 {[%clk 0:00:37]}  g6 {[%clk 0:00:24]} 40. Nf6+ {[%clk 0:00:38]}  Ke7 {[%clk 0:00:23]} 41. Nd5+ {[%clk 0:00:30]}  Kf7 {[%clk 0:00:23]} 42. h4 {[%clk 0:00:26]}  Rc8 {[%clk 0:00:22]} 43. Rc3 {[%clk 0:00:27]}  Nc5 {[%clk 0:00:21]} 44. Ke3 {[%clk 0:00:26]}  Ne4 {[%clk 0:00:21]} 45. Rc2 {[%clk 0:00:26]}  Nf6 {[%clk 0:00:20]} 46. Nb6 {[%clk 0:00:22]}  Re8+ {[%clk 0:00:20]} 47. Kf3 {[%clk 0:00:23]}  Re4 {[%clk 0:00:19]} 48. c5 {[%clk 0:00:23]}  dxc5 {[%clk 0:00:20]} 49. Rxc5 {[%clk 0:00:24]}  Re6 {[%clk 0:00:11]} 50. Nc8 {[%clk 0:00:20]}  Ne8 {[%clk 0:00:07]} 51. b6 {[%clk 0:00:20]}  Nd6 {[%clk 0:00:05]} 52. Rc7+ {[%clk 0:00:20]}  Kf6 {[%clk 0:00:05]} 53. Nxd6 {[%clk 0:00:20]}  Rxd6 {[%clk 0:00:05]} 54. Rxb7 {[%clk 0:00:20]}  Rd3+ {[%clk 0:00:06]} 55. Kf2 {[%clk 0:00:19]}  Rxa3 {[%clk 0:00:06]} 56. Rxh7 {[%clk 0:00:20]}  Rb3 {[%clk 0:00:06]} 57. Ra7 {[%clk 0:00:18]}  Rxb6 {[%clk 0:00:05]} 58. Rxa5 {[%clk 0:00:18]}  Rb4 {[%clk 0:00:05]} 59. Kg3 {[%clk 0:00:17]}  Rg4+ {[%clk 0:00:05]} 60. Kh3 {[%clk 0:00:18]}  Rb4 {[%clk 0:00:05]} 61. Ra6+ {[%clk 0:00:18]}  Kg7 {[%clk 0:00:06]} 62. Ra7+ {[%clk 0:00:18]}  Kh6 {[%clk 0:00:06]} 63. Ra8 {[%clk 0:00:19]}  Rb3+ {[%clk 0:00:07]} 64. Kh2 {[%clk 0:00:18]}  Kh5 {[%clk 0:00:07]} 65. Rh8+ {[%clk 0:00:17]}  Kg4 {[%clk 0:00:08]} 66. Rg8 {[%clk 0:00:18]}  Rb6 {[%clk 0:00:08]} 67. Rh8 {[%clk 0:00:18]}  f4 {[%clk 0:00:08]} 68. Rh7 {[%clk 0:00:14]}  Rc6 {[%clk 0:00:09]} 69. Rh8 {[%clk 0:00:15]}  Rd6 {[%clk 0:00:09]} 70. Rh7 {[%clk 0:00:15]}  Re6 {[%clk 0:00:08]} 71. Rh8 {[%clk 0:00:16]}  Kf5 {[%clk 0:00:08]} 72. Rf8+ {[%clk 0:00:16]}  Kg4 {[%clk 0:00:08]} 73. Rh8 {[%clk 0:00:16]}  Ra6 {[%clk 0:00:08]} 74. Rh7 {[%clk 0:00:16]}  Rb6 {[%clk 0:00:07]} 75. Rh8 {[%clk 0:00:16]}  Rf6 {[%clk 0:00:08]} 76. Rh7 {[%clk 0:00:17]}  Rc6 {[%clk 0:00:08]} 77. Rh8 {[%clk 0:00:17]}  Rc2 {[%clk 0:00:06]} 78. Rg8 {[%clk 0:00:16]}  Kf5 {[%clk 0:00:05]} 79. Rf8+ {[%clk 0:00:17]}  Kg4 {[%clk 0:00:06]} 80. Rg8 {[%clk 0:00:17]}  Rc6 {[%clk 0:00:04]} 81. Rh8 {[%clk 0:00:16]} 1/2-1/2


[Site "https://www.chess.com"]

[Event "Titled Tuesday Blitz June 07 Late 2022"]
[White "Svane, Rasmus"]
[Black "Martinez Alcantara, Jose Eduardo"]
[WhiteFideId "4657101"]
[BlackFideId "3805662"]
[WhiteElo "2674"]
[BlackElo "2703"]
[Result "1/2-1/2"]
[Round "08"]
[TimeControl "180+1"]
[Date "2022.06.07"]
[WhiteClock "0:00:12"]
[BlackClock "0:00:07"]

1. Nf3 {[%clk 0:03:00]}  c5 {[%clk 0:02:57]} 2. c4 {[%clk 0:03:00]}  Nf6 {[%clk 0:02:58]} 3. Nc3 {[%clk 0:03:01]}  d5 {[%clk 0:02:58]} 4. cxd5 {[%clk 0:03:01]}  Nxd5 {[%clk 0:02:59]} 5. e3 {[%clk 0:03:01]}  Nxc3 {[%clk 0:02:56]} 6. dxc3 {[%clk 0:03:02]}  Qc7 {[%clk 0:02:51]} 7. e4 {[%clk 0:03:02]}  Nc6 {[%clk 0:02:50]} 8. Be3 {[%clk 0:03:03]}  e6 {[%clk 0:02:48]} 9. Nd2 {[%clk 0:03:03]}  Be7 {[%clk 0:02:45]} 10. Qg4 {[%clk 0:02:57]}  O-O {[%clk 0:02:43]} 11. Qg3 {[%clk 0:02:58]}  Bd6 {[%clk 0:02:40]} 12. f4 {[%clk 0:02:58]}  f5 {[%clk 0:02:33]} 13. e5 {[%clk 0:02:38]}  Be7 {[%clk 0:02:33]} 14. a4 {[%clk 0:02:29]}  b6 {[%clk 0:02:10]} 15. Qf2 {[%clk 0:02:17]}  Kh8 {[%clk 0:02:05]} 16. Be2 {[%clk 0:02:10]}  Bb7 {[%clk 0:02:02]} 17. Rd1 {[%clk 0:02:04]}  Na5 {[%clk 0:01:59]} 18. Nc4 {[%clk 0:02:02]}  Rad8 {[%clk 0:01:29]} 19. O-O {[%clk 0:01:59]}  Bd5 {[%clk 0:01:14]} 20. Nxa5 {[%clk 0:01:58]}  bxa5 {[%clk 0:01:15]} 21. c4 {[%clk 0:01:55]}  Bc6 {[%clk 0:01:12]} 22. b3 {[%clk 0:01:46]}  Qb6 {[%clk 0:01:11]} 23. Rb1 {[%clk 0:01:43]}  Be4 {[%clk 0:01:10]} 24. Rb2 {[%clk 0:01:40]}  Rd7 {[%clk 0:01:08]} 25. Bf3 {[%clk 0:01:32]}  Bxf3 {[%clk 0:01:07]} 26. Qxf3 {[%clk 0:01:32]}  Rfd8 {[%clk 0:01:08]} 27. Qe2 {[%clk 0:01:02]}  Rd3 {[%clk 0:01:03]} 28. Rfb1 {[%clk 0:01:00]}  Qb4 {[%clk 0:00:53]} 29. h3 {[%clk 0:00:51]}  Kg8 {[%clk 0:00:49]} 30. Bf2 {[%clk 0:00:40]}  Qb7 {[%clk 0:00:45]} 31. Be1 {[%clk 0:00:38]}  Qb6 {[%clk 0:00:24]} 32. Rd2 {[%clk 0:00:36]}  R3d4 {[%clk 0:00:25]} 33. Rxd4 {[%clk 0:00:31]}  cxd4 {[%clk 0:00:25]} 34. Qd3 {[%clk 0:00:32]}  Bc5 {[%clk 0:00:23]} 35. Bd2 {[%clk 0:00:26]}  Kf7 {[%clk 0:00:23]} 36. Kh2 {[%clk 0:00:26]}  g6 {[%clk 0:00:23]} 37. Rf1 {[%clk 0:00:24]}  Rb8 {[%clk 0:00:21]} 38. Rf3 {[%clk 0:00:25]}  Ke8 {[%clk 0:00:20]} 39. g4 {[%clk 0:00:24]}  Qc7 {[%clk 0:00:14]} 40. gxf5 {[%clk 0:00:24]}  exf5 {[%clk 0:00:15]} 41. Qe2 {[%clk 0:00:19]}  Kf7 {[%clk 0:00:11]} 42. Qd3 {[%clk 0:00:17]}  Ke6 {[%clk 0:00:11]} 43. Be1 {[%clk 0:00:17]}  Qb6 {[%clk 0:00:06]} 44. Qe2 {[%clk 0:00:15]}  Qc6 {[%clk 0:00:05]} 45. Bxa5 {[%clk 0:00:14]}  Qe4 {[%clk 0:00:06]} 46. Qd3 {[%clk 0:00:13]}  h6 {[%clk 0:00:03]} 47. Bd2 {[%clk 0:00:13]}  g5 {[%clk 0:00:02]} 48. fxg5 {[%clk 0:00:13]}  hxg5 {[%clk 0:00:03]} 49. Bxg5 {[%clk 0:00:12]}  Bb4 {[%clk 0:00:04]} 50. Bf4 {[%clk 0:00:09]}  Rg8 {[%clk 0:00:03]} 51. Bg3 {[%clk 0:00:09]}  Bc3 {[%clk 0:00:03]} 52. Qxe4 {[%clk 0:00:09]}  fxe4 {[%clk 0:00:03]} 53. Rf6+ {[%clk 0:00:10]}  Ke7 {[%clk 0:00:04]} 54. Bh4 {[%clk 0:00:09]}  Kd7 {[%clk 0:00:04]} 55. e6+ {[%clk 0:00:09]}  Kd6 {[%clk 0:00:05]} 56. Rh6 {[%clk 0:00:07]}  d3 {[%clk 0:00:02]} 57. e7+ {[%clk 0:00:08]}  Kd7 {[%clk 0:00:03]} 58. Rh5 {[%clk 0:00:08]}  Ke6 {[%clk 0:00:02]} 59. Rd5 {[%clk 0:00:09]}  Be5+ {[%clk 0:00:02]} 60. Kh1 {[%clk 0:00:09]}  Bc7 {[%clk 0:00:02]} 61. b4 {[%clk 0:00:05]}  Rh8 {[%clk 0:00:01]} 62. Bg5 {[%clk 0:00:03]}  Rxh3+ {[%clk 0:00:01]} 63. Kg2 {[%clk 0:00:04]}  Rh8 {[%clk 0:00:02]} 64. Kf2 {[%clk 0:00:04]}  Kf7 {[%clk 0:00:02]} 65. c5 {[%clk 0:00:03]}  Rh3 {[%clk 0:00:02]} 66. b5 {[%clk 0:00:03]}  Rf3+ {[%clk 0:00:02]} 67. Ke1 {[%clk 0:00:03]}  Ba5+ {[%clk 0:00:03]} 68. Bd2 {[%clk 0:00:03]}  Bxd2+ {[%clk 0:00:03]} 69. Kxd2 {[%clk 0:00:04]}  Rf2+ {[%clk 0:00:02]} 70. Ke1 {[%clk 0:00:03]}  Re2+ {[%clk 0:00:03]} 71. Kd1 {[%clk 0:00:04]}  Kxe7 {[%clk 0:00:03]} 72. c6 {[%clk 0:00:04]}  Rc2 {[%clk 0:00:04]} 73. Rd4 {[%clk 0:00:05]}  Re2 {[%clk 0:00:03]} 74. c7 {[%clk 0:00:05]}  Rc2 {[%clk 0:00:04]} 75. Rxe4+ {[%clk 0:00:05]}  Kd7 {[%clk 0:00:04]} 76. Rd4+ {[%clk 0:00:05]}  Kxc7 {[%clk 0:00:05]} 77. Rxd3 {[%clk 0:00:06]}  Ra2 {[%clk 0:00:06]} 78. Rd4 {[%clk 0:00:06]}  Kb6 {[%clk 0:00:06]} 79. Rd6+ {[%clk 0:00:07]}  Kb7 {[%clk 0:00:05]} 80. Ra6 {[%clk 0:00:07]}  Rh2 {[%clk 0:00:05]} 81. Kc1 {[%clk 0:00:07]}  Rg2 {[%clk 0:00:06]} 82. Kb1 {[%clk 0:00:08]}  Rh2 {[%clk 0:00:06]} 83. Rf6 {[%clk 0:00:08]}  Rg2 {[%clk 0:00:07]} 84. Rc6 {[%clk 0:00:07]}  Rh2 {[%clk 0:00:07]} 85. Rc2 {[%clk 0:00:07]}  Rh4 {[%clk 0:00:07]} 86. Ra2 {[%clk 0:00:08]}  Kb6 {[%clk 0:00:07]} 87. Kb2 {[%clk 0:00:06]}  Ka5 {[%clk 0:00:07]} 88. Kb3 {[%clk 0:00:05]}  Rh3+ {[%clk 0:00:07]} 89. Kc4 {[%clk 0:00:06]}  Rh4+ {[%clk 0:00:08]} 90. Kc3 {[%clk 0:00:05]}  Rh3+ {[%clk 0:00:06]} 91. Kc4 {[%clk 0:00:05]}  Rh4+ {[%clk 0:00:05]} 92. Kc3 {[%clk 0:00:06]}  Rg4 {[%clk 0:00:03]} 93. Kb3 {[%clk 0:00:06]}  Rf4 {[%clk 0:00:03]} 94. Kc3 {[%clk 0:00:06]}  Rb4 {[%clk 0:00:03]} 95. Ra1 {[%clk 0:00:06]}  Rh4 {[%clk 0:00:03]} 96. Kb3 {[%clk 0:00:06]}  Rg4 {[%clk 0:00:03]} 97. Kc3 {[%clk 0:00:07]}  Rxa4 {[%clk 0:00:02]} 98. Rxa4+ {[%clk 0:00:07]}  Kxa4 {[%clk 0:00:03]} 99. Kb2 {[%clk 0:00:07]}  Kxb5 {[%clk 0:00:03]} 100. Ka1 {[%clk 0:00:08]}  a5 {[%clk 0:00:04]} 101. Kb1 {[%clk 0:00:08]}  a4 {[%clk 0:00:05]} 102. Ka1 {[%clk 0:00:09]}  a3 {[%clk 0:00:06]} 103. Kb1 {[%clk 0:00:10]}  a2+ {[%clk 0:00:07]} 104. Ka1 {[%clk 0:00:11]}  Kb4 {[%clk 0:00:07]} 105. Kxa2 {[%clk 0:00:12]} 1/2-1/2


[Site "https://www.chess.com"]